bitfinex-derivatives/quotes_SOLF0:USTF0_20250625
["timestamp","ask_amount","ask_price","bid_price","bid_amount"]
[1750836845760,6.7939,147.13,147.1,9.0261]
[1750836845944,6.7939,147.13,147.1,2.2313]
[1750836846150,10.12181434,147.14,147.11,6.7942]
[1750836846655,3.32841434,147.14,147.11,6.7942]
[1750836846958,3.32841434,147.14,147.12,6.794]
[1750836848557,10.12171434,147.14,147.12,6.794]
[1750836848851,14.25655259,147.14,147.11,6.7943]
[1750836849252,14.25798058,147.14,147.11,6.7943]
[1750836849452,10.12171434,147.14,147.11,6.7943]
[1750836849656,3.32841434,147.14,147.12,6.794]
[1750836850054,37.08,147.15,147.1,2.2313]
[1750836850249,41.21626624,147.15,147.13,6.7934]
[1750836850450,41.21626624,147.15,147.1,2.2313]
[1750836851357,3.32841434,147.14,147.07,45.3253864]
[1750836851759,3.32841434,147.12,147.07,8.2453864]
[1750836851961,3.32841434,147.12,147.06,13.93850074]
[1750836852560,3.32841434,147.13,147.1,6.7948]
[1750836852862,3.32841434,147.13,147.07,8.2453864]
[1750836853065,10.12221434,147.13,147.1,6.7947]
[1750836853361,3.32841434,147.13,147.1,6.7947]
[1750836855265,6.7942,147.12,147.1,6.7947]
[1750836855662,40.30841434,147.11,147.06,10.6100864]
[1750836855853,40.30841434,147.11,147.06,2.3647]
[1750836856054,40.30841434,147.11,147.07,6.7961]
[1750836856256,6.7953,147.1,147.07,6.7961]
[1750836856752,40.30841434,147.11,147.04,8.2453864]
[1750836857156,44.44236402,147.11,147.04,8.2453864]
[1750836857356,6.7958,147.09,147.06,6.7968]
[1750836857562,3.32841434,147.09,147.06,6.7968]
[1750836858666,3.32841434,147.09,147.05,6.7971]
[1750836858964,7.46372936,147.09,147.05,6.7971]
[1750836859156,3.32841434,147.09,147.05,6.7971]
[1750836859358,7.46372936,147.09,147.05,6.7971]
[1750836859557,3.32841434,147.09,147.05,6.7971]
[1750836859760,7.46372936,147.09,147.05,6.7971]
[1750836859969,3.32841434,147.09,147.05,6.7971]
[1750836860168,7.46372936,147.09,147.05,6.7971]
[1750836860368,6.796,147.08,147.05,6.7971]
[1750836860668,7.46372936,147.09,147.05,6.7971]
[1750836860868,3.32841434,147.09,147.05,6.7971]
[1750836861169,6.796,147.08,147.05,6.7971]
[1750836861471,4.13368086,147.08,147.05,6.7971]
[1750836861768,3.32841434,147.09,147.05,6.7971]
[1750836861964,7.4620952,147.09,147.05,6.7971]
[1750836862273,6.7967,147.07,147.02,4.6482]
[1750836862463,43.7967,147.07,147.02,4.6482]
[1750836862767,43.7967,147.07,147.05,6.7971]
[1750836864863,47.12511434,147.07,147.04,6.7977]
[1750836865667,47.12511434,147.07,147.05,6.7972]
[1750836865865,40.32841434,147.07,147.05,6.7972]
[1750836866067,37.0,147.07,147.02,4.6482]
[1750836866270,37.0,147.07,147.06,6.7969]
[1750836868971,47.12351434,147.1,147.08,6.7959]
[1750836870572,47.12351434,147.1,147.07,6.7962]
[1750836872373,47.12351434,147.1,147.08,6.7958]
[1750836873078,40.32841434,147.1,147.09,6.7955]
[1750836874868,40.32841434,147.1,147.04,8.2453864]
[1750836875181,40.32841434,147.1,147.03,3.32841434]
[1750836875182,40.32841434,147.1,147.08,6.7957]
[1750836876180,47.12351434,147.1,147.08,6.7957]
[1750836877180,6.7955,147.09,147.07,6.7962]
[1750836877679,40.32841434,147.1,147.07,6.7962]
[1750836877882,47.12391434,147.1,147.07,6.7962]
[1750836878472,6.7955,147.09,147.07,6.7962]
[1750836880180,47.12371434,147.1,147.07,6.7962]
[1750836881186,6.7955,147.09,147.07,6.7962]
[1750836883472,3.32841434,147.08,147.02,4.6482]
[1750836883676,3.32841434,147.06,147.02,4.6482]
[1750836884085,10.12551434,147.06,147.03,6.7982]
[1750836884480,6.7971,147.06,147.02,4.6482]
[1750836884681,10.12551434,147.06,147.02,4.6482]
[1750836884982,10.12551434,147.06,147.03,6.7982]
[1750836885179,10.12551434,147.06,147.02,4.6482]
[1750836885991,3.32841434,147.06,147.02,4.6482]
[1750836886394,40.18841434,147.06,147.02,4.6482]
[1750836886593,6.7976,147.05,147.03,6.798]
[1750836887595,46.98551434,147.06,147.03,6.798]
[1750836890202,46.98551434,147.06,147.03,6.7982]
[1750836891391,46.98551434,147.06,147.04,6.7978]
[1750836893402,46.98551434,147.06,147.02,4.6482]
[1750836893403,40.18841434,147.06,147.02,4.6482]
[1750836894106,46.98541434,147.06,147.04,6.7974]
[1750836895502,36.88,147.09,147.02,4.6482]
[1750836895704,36.88,147.09,147.03,8.2453864]
[1750836895903,36.88,147.09,147.07,6.796]
[1750836896907,36.88,147.09,147.08,6.7959]
[1750836897801,6.7968,147.07,147.02,12.8935864]
[1750836898001,10.12521434,147.07,147.02,4.6482]
[1750836898202,14.2454196,147.07,147.02,4.6482]
[1750836898402,10.12521434,147.07,147.03,6.798]
[1750836898598,7.4486196,147.07,147.02,4.6482]
[1750836898803,6.7969,147.06,147.02,4.6482]
[1750836899308,10.91710526,147.06,147.02,4.6482]
[1750836900004,10.92022488,147.06,147.03,6.7982]
[1750836900210,6.7974,147.05,147.03,6.7982]
[1750836900917,7.45215747,147.05,147.0,8.2453864]
[1750836901110,3.32883259,147.03,146.99,8.2453864]
[1750836901305,10.12823259,147.01,146.98,6.8003]
[1750836901613,10.12823259,147.01,146.97,12.6827864]
[1750836901614,40.20883259,147.01,146.97,12.6827864]
[1750836901812,4.12301144,147.03,147.02,6.7985]
[1750836902008,41.00359124,147.04,147.02,6.7985]
[1750836902605,47.80169124,147.04,147.01,6.7989]
[1750836902801,41.00359124,147.04,147.01,6.7989]
[1750836903613,3.33077521,147.03,147.0,6.7995]
[1750836903813,7.4574493,147.03,147.0,6.7995]
[1750836904514,3.33077521,147.01,146.96,8.2453864]
[1750836904701,36.88,147.0,146.95,10.6057864]
[1750836904907,43.68,147.0,146.97,6.8006]
[1750836905100,3.33077521,146.99,146.95,10.6057864]
[1750836905306,3.33077521,146.99,146.95,2.3604]
[1750836905501,3.33077521,146.99,146.96,6.27568372]
[1750836905906,3.33077521,146.99,146.97,6.8008]
[1750836906317,3.33077521,146.99,146.96,6.27568372]
[1750836906618,3.33077521,146.99,146.97,6.801]
[1750836908612,10.13117521,146.99,146.97,6.801]
[1750836908809,10.13117521,146.99,146.96,6.8013]
[1750836910417,6.8004,146.99,146.96,6.8013]
[1750836910718,10.13117521,146.99,146.96,6.8013]
[1750836910914,10.13117521,146.99,146.97,6.801]
[1750836911117,3.33077521,146.99,146.95,8.63608372]
[1750836911419,36.88,147.0,146.98,6.8002]
[1750836912714,36.88,147.0,146.99,6.8001]
[1750836919316,36.72,147.03,146.98,3.33077521]
[1750836919517,36.72,147.03,146.98,9.60645893]
[1750836919724,36.72,147.03,146.99,2.3552]
[1750836920417,36.72,147.03,147.02,6.7987]
[1750836922525,46.84787521,147.06,147.03,6.7978]
[1750836923322,40.05077521,147.06,146.99,8.63088372]
[1750836923627,3.33077521,147.04,146.99,8.63088372]
[1750836923925,10.12897521,147.04,147.01,6.7988]
[1750836924123,3.33077521,147.04,147.01,6.7988]
[1750836925024,3.33077521,147.02,147.0,6.7994]
[1750836925329,40.05077521,147.02,146.97,8.60528372]
[1750836925513,46.84977521,147.02,146.99,6.7997]
[1750836927424,46.84977521,147.02,147.0,6.7996]
[1750836928327,36.72,147.02,147.01,6.7992]
[1750836930326,36.72,147.06,146.98,6.27568372]
[1750836930529,36.72,147.08,147.01,9.60645893]
[1750836930724,36.72,147.08,147.02,2.3154]
[1750836930925,43.5162,147.08,147.06,6.7969]
[1750836931129,36.72,147.08,147.06,6.7969]
[1750836931725,36.72,147.08,147.03,6.7979]
[1750836931926,3.33077521,147.07,147.02,10.79848372]
[1750836932229,6.797,147.06,147.02,11.3215]
[1750836932827,6.797,147.06,147.02,4.5228]
[1750836933921,6.7978,147.05,147.02,4.5228]
[1750836934720,6.7978,147.04,147.02,4.5228]
[1750836935334,40.05077521,147.03,146.96,6.27568372]
[1750836935535,3.33077521,147.0,146.96,6.27568372]
[1750836935737,6.8004,146.99,146.96,13.07698372]
[1750836936031,3.33077521,147.0,146.96,6.8013]
[1750836936426,10.13067521,147.0,146.96,6.8013]
[1750836937039,10.13067521,147.0,146.97,6.801]
[1750836939032,3.33077521,147.01,146.94,70.01007521]
[1750836939334,3.33077521,147.01,146.95,2.2354]
[1750836939637,3.33077521,147.01,147.0,6.7996]
[1750836942835,40.05077521,147.03,146.97,6.27089574]
[1750836943035,40.05077521,147.03,146.99,6.27089574]
[1750836943538,46.84907521,147.03,147.0,6.7996]
[1750836943944,46.84907521,147.03,146.99,6.27089574]
[1750836944238,46.84907521,147.03,146.98,6.27089574]
[1750836945037,46.84907521,147.03,147.0,6.7993]
[1750836945538,46.84907521,147.03,146.99,6.27089574]
[1750836945738,46.84907521,147.03,146.98,6.27089574]
[1750836946642,46.84907521,147.03,147.01,6.7991]
[1750836947440,40.05077521,147.03,147.01,6.7991]
[1750836948440,46.84907521,147.03,147.01,6.7991]
[1750836948740,46.84907521,147.03,147.0,6.7994]
[1750836950643,6.7987,147.02,147.0,6.7994]
[1750836951244,10.13037521,147.01,146.97,6.27089574]
[1750836951442,3.33077521,147.01,146.97,6.27089574]
[1750836951643,3.33077521,147.01,146.98,6.8003]
[1750836952445,6.7997,147.0,146.97,13.07169574]
[1750836952638,3.33077521,146.99,146.97,6.8008]
[1750836952838,3.33077521,146.99,146.97,6.27089574]
[1750836954245,3.33077521,146.99,146.98,6.8006]
[1750836957050,3.33077521,146.99,146.97,6.8008]
[1750836957348,10.13087521,146.99,146.97,6.8008]
[1750836958339,46.69087521,146.99,146.97,6.8008]
[1750836961046,39.89077521,146.99,146.95,6.27089574]
[1750836961236,3.33077521,146.97,146.94,6.27089574]
[1750836961438,3.33077521,146.95,146.94,13.07309574]
[1750836961949,3.33077521,146.95,146.94,6.8022]
[1750836962449,3.33077521,146.97,146.95,6.8016]
[1750836963051,3.33077521,146.97,146.96,6.8015]
[1750836964246,3.33077521,146.97,146.93,6.27089574]
[1750836964944,3.33077521,146.95,146.93,6.27089574]
[1750836965150,39.89077521,146.95,146.91,6.27089574]
[1750836965347,3.33077521,146.93,146.9,6.27089574]
[1750836965553,3.33077521,146.93,146.91,6.8035]
[1750836965752,3.33077521,146.93,146.9,6.27089574]
[1750836966146,3.33077521,146.93,146.92,6.8033]
[1750836966346,3.33077521,146.93,146.89,6.27089574]
[1750836966850,3.33077521,146.93,146.91,6.8036]
[1750836967250,3.33077521,146.93,146.89,6.27089574]
[1750836969350,3.33077521,146.93,146.91,6.8035]
[1750836969753,10.13367521,146.93,146.91,6.8035]
[1750836970153,2.0741,146.99,146.88,128.21047833]
[1750836970154,587.56,147.03,146.9,50.1885]
[1750836970359,3.33077521,146.97,146.91,6.27089574]
[1750836970659,3.33077521,146.97,146.92,8.68719574]
[1750836971159,3.33077521,146.97,146.93,2.4101]
[1750836971349,3.33077521,146.97,146.96,6.8015]
[1750836972964,3.33077521,146.97,146.95,6.8018]
[1750836975560,3.33077521,146.97,146.9,6.27089574]
[1750836975754,36.58,146.98,146.89,3.33077521]
[1750836975755,3.33077521,146.95,146.89,6.27089574]
[1750836975961,36.42,146.94,146.93,6.8029]
[1750836976562,36.42,146.94,146.88,13.13309574]
[1750836977166,36.42,146.94,146.92,6.8031]
[1750836978565,36.42,146.94,146.93,6.8029]
[1750836985878,39.75077521,146.97,146.95,6.8017]
[1750836986082,39.75077521,146.97,146.9,6.27089574]
[1750836986376,36.42,146.97,146.96,6.8015]
[1750836986578,36.42,147.0,146.93,9.60167095]
[1750836986778,36.42,147.0,146.95,9.60167095]
[1750836986977,36.42,147.0,146.99,6.8001]
[1750836988680,36.42,147.0,146.97,6.26364901]
[1750836988681,36.42,147.0,146.98,6.8005]
[1750836989081,43.2196,147.0,146.98,6.8005]
[1750836990281,39.75077521,147.0,146.95,6.26364901]
[1750836990476,39.75077521,147.0,146.94,13.08904901]
[1750836990878,6.8008,146.98,146.94,13.08904901]
[1750836991080,39.75077521,147.0,146.94,13.08904901]
[1750836992185,39.75077521,147.0,146.97,6.8007]
[1750836993084,39.75077521,147.0,146.95,6.26364901]
[1750836993882,39.75077521,147.0,146.94,13.08904901]
[1750836994084,6.8004,146.99,146.96,6.8012]
[1750836994283,3.33077521,146.98,146.94,10.78384901]
[1750836994486,3.33077521,146.98,146.94,8.44394901]
[1750836994891,3.33077521,146.96,146.92,6.26364901]
[1750836995285,39.75077521,146.96,146.92,6.26364901]
[1750836995784,6.8022,146.95,146.92,6.8031]
[1750836996887,3.33077521,146.94,146.92,6.8031]
[1750836997784,10.13327521,146.94,146.92,6.8031]
[1750837000589,10.13327521,146.94,146.91,6.8036]
[1750837003492,10.13327521,146.94,146.92,6.8033]
[1750837006297,36.28,146.99,146.92,9.61228034]
[1750837006595,36.28,146.99,146.93,6.28150513]
[1750837006782,36.28,146.99,146.97,6.8008]
[1750837008392,43.0802,146.99,146.97,6.8008]
[1750837008698,36.28,146.99,146.98,6.8006]
[1750837008896,36.28,147.02,146.97,6.28150513]
[1750837009195,36.28,147.05,146.98,6.28150513]
[1750837009397,36.28,147.05,147.0,9.61228034]
[1750837009599,36.28,147.05,147.02,6.7984]
[1750837009789,39.61077521,147.05,147.02,6.7984]
[1750837009994,39.61077521,147.05,147.0,6.28150513]
[1750837010196,39.61077521,147.05,147.03,6.7979]
[1750837010494,39.61077521,147.05,147.0,6.28150513]
[1750837010802,46.40827521,147.05,147.02,6.7987]
[1750837011602,6.7978,147.04,147.02,6.7987]
[1750837012598,46.40837521,147.05,147.02,6.7987]
[1750837014796,39.61077521,147.05,146.97,6.28150513]
[1750837015104,3.33077521,147.03,146.96,14.00480722]
[1750837015802,3.33077521,147.03,146.96,5.65327521]
[1750837016202,10.12937521,147.03,146.96,5.65327521]
[1750837016391,3.33077521,147.03,146.96,5.65327521]
[1750837016593,3.33077521,147.03,146.99,6.7997]
[1750837016792,3.33077521,147.01,146.96,2.3225]
[1750837017000,39.59077521,147.01,146.96,2.3225]
[1750837017804,46.38997521,147.01,146.98,6.8003]
[1750837018306,46.38997521,147.01,146.96,2.3225]
[1750837018307,6.7998,147.0,146.97,6.8009]
[1750837018609,3.33077521,146.99,146.96,2.3225]
[1750837018802,3.33077521,146.99,146.95,2.2581]
[1750837018992,10.13107521,146.99,146.96,6.8012]
[1750837020401,3.33077521,146.97,146.95,6.8017]
[1750837020599,3.33077521,146.97,146.92,8.61014822]
[1750837021000,3.33077521,146.97,146.96,6.8015]
[1750837023109,10.13097521,146.99,146.96,6.8015]
[1750837024009,6.8006,146.98,146.95,6.8018]
[1750837024311,39.61077521,146.97,146.95,6.8018]
[1750837026112,39.61077521,146.97,146.96,6.8015]
[1750837027808,39.61077521,146.97,146.95,6.8017]
[1750837029613,39.61077521,146.97,146.96,6.8015]
[1750837029814,39.61077521,146.97,146.92,8.61014822]
[1750837030408,39.61077521,146.97,146.92,2.3468]
[1750837030811,3.33077521,146.95,146.91,8.58534822]
[1750837031016,10.13277521,146.95,146.92,6.803]
[1750837031216,10.13277521,146.95,146.91,8.58534822]
[1750837031217,3.33077521,146.93,146.89,6.26334822]
[1750837031415,3.33077521,146.93,146.88,8.49304822]
[1750837031718,46.41377521,146.93,146.9,6.8041]
[1750837033512,39.61077521,146.93,146.91,6.8038]
[1750837034119,46.41367521,146.93,146.91,6.8038]
[1750837036118,36.28,146.93,146.92,6.8033]
[1750837036309,36.14,146.97,146.9,3.33077521]
[1750837036618,36.14,146.97,146.9,9.59412343]
[1750837036821,36.14,146.97,146.95,6.8017]
[1750837037115,36.14,146.97,146.91,6.26334822]
[1750837037323,6.8016,146.96,146.94,6.8023]
[1750837037615,36.14,146.97,146.94,6.8023]
[1750837037812,36.14,146.97,146.91,6.26334822]
[1750837038013,42.9413,146.97,146.91,6.26334822]
[1750837039118,42.9413,146.97,146.94,6.802]
[1750837039515,6.8016,146.96,146.94,6.802]
[1750837040916,6.8016,146.96,146.93,6.8027]
[1750837046528,10.13237521,146.96,146.93,6.8027]
[1750837046722,6.8022,146.95,146.92,6.8031]
[1750837046928,3.33077521,146.96,146.92,6.8031]
[1750837047427,6.8022,146.95,146.92,6.8031]
[1750837047628,3.33077521,146.96,146.92,6.8031]
[1750837047929,6.8023,146.95,146.92,6.8031]
[1750837048320,3.33077521,146.96,146.91,6.8036]
[1750837048624,6.8026,146.94,146.91,6.8036]
[1750837052342,10.13337521,146.94,146.91,6.8036]
[1750837054831,10.13337521,146.94,146.92,6.8033]
[1750837058642,3.33077521,146.94,146.92,6.8033]
[1750837059836,10.13317521,146.94,146.92,6.8033]
[1750837060630,42.9413,146.97,146.94,6.8022]
[1750837060827,46.27207521,146.97,146.94,6.8022]
[1750837061631,6.8015,146.96,146.93,6.8026]
[1750837063043,6.802,146.95,146.92,13.06644822]
[1750837063639,6.8026,146.94,146.92,6.26334822]
[1750837063842,3.33406069,146.95,146.91,6.26334822]
[1750837064143,6.8027,146.94,146.91,13.06694822]
[1750837064834,6.8027,146.94,146.92,6.8032]
[1750837065041,3.33406069,146.95,146.92,6.8032]
[1750837065742,10.13616069,146.95,146.92,6.8032]
[1750837066045,10.13616069,146.95,146.92,13.06654822]
[1750837067443,10.13616069,146.95,146.93,6.8028]
[1750837068444,3.33406069,146.95,146.94,6.8024]
[1750837068646,39.47406069,146.97,146.94,6.8024]
[1750837069038,46.27536069,146.97,146.94,6.8024]
[1750837069344,42.9413,146.97,146.94,6.8024]
[1750837069751,46.27536069,146.97,146.94,6.8024]
[1750837071647,6.8017,146.96,146.93,13.06584822]
[1750837073650,6.8017,146.96,146.94,6.8024]
[1750837074951,6.8017,146.96,146.93,13.06594822]
[1750837075653,36.14,146.97,146.93,6.26334822]
[1750837076151,36.14,146.97,146.95,6.8016]
[1750837077151,42.9413,146.97,146.94,15.30534822]
[1750837077952,42.9413,146.97,146.95,6.8019]
[1750837079260,42.9413,146.97,146.94,15.30534822]
[1750837079855,42.9413,146.97,146.95,6.8018]
[1750837080044,42.9413,146.97,146.94,8.50314822]
[1750837080449,39.31255457,147.0,146.95,6.26334822]
[1750837080651,39.31255457,147.0,146.96,6.26334822]
[1750837080850,10.13335457,146.98,146.96,6.26334822]
[1750837081955,3.33255457,146.98,146.96,6.26334822]
[1750837082664,3.33255457,146.98,146.95,6.26334822]
[1750837082665,6.801,146.97,146.95,6.26334822]
[1750837082959,3.33255457,146.96,146.95,6.26334822]
[1750837083258,3.33255457,146.96,146.95,9.50820271]
[1750837083460,10.13405457,146.96,146.95,9.50820271]
[1750837083652,46.11405457,146.96,146.95,3.24485449]
[1750837084255,39.31255457,146.96,146.95,3.24485449]
[1750837084864,46.11405457,146.96,146.95,3.24485449]
[1750837085267,46.11405457,146.96,146.95,3.24521808]
[1750837086768,42.7815,146.96,146.95,3.24521808]
[1750837088169,42.7815,146.96,146.95,3.24502801]
[1750837089465,35.98,146.96,146.95,3.24502801]
[1750837089671,35.98,146.96,146.95,9.50837623]
[1750837090669,35.98,146.96,146.95,3.24502801]
[1750837090865,35.98,146.96,146.95,6.26334822]
[1750837091070,35.98,146.96,146.95,16.30991851]
[1750837091370,35.98,146.96,146.95,16.30929999]
[1750837091571,35.98,146.96,146.95,10.04595177]
[1750837091973,35.98,146.99,146.95,11.59548378]
[1750837092177,35.98,147.0,146.97,6.3013312]
[1750837092572,35.98,147.0,146.98,10.04301155]
[1750837092778,35.98,147.0,146.98,13.1016312]
[1750837093077,35.98,147.0,146.98,6.3013312]
[1750837093280,35.98,147.0,146.98,6.8006]
[1750837093469,35.98,147.0,146.98,13.1019312]
[1750837093670,35.98,147.0,146.98,6.3013312]
[1750837093870,35.98,147.0,146.97,13.1022312]
[1750837094484,42.7799,147.0,146.97,13.1022312]
[1750837094876,46.11112391,147.0,146.97,13.1022312]
[1750837095072,6.8002,146.99,146.97,6.8009]
[1750837095270,39.31122391,147.0,146.96,8.5279312]
[1750837095472,35.98,147.03,146.98,6.3013312]
[1750837095775,3.33122391,147.02,146.98,6.3013312]
[1750837095979,3.33122391,147.02,146.99,6.3013312]
[1750837096477,3.33122391,147.02,147.01,6.7992]
[1750837096778,35.98,147.03,146.99,6.3013312]
[1750837096980,35.98,147.03,147.01,6.7988]
[1750837097384,35.98,147.03,147.02,6.7987]
[1750837098075,35.98,147.03,147.01,6.799]
[1750837098276,35.98,147.03,147.0,6.3013312]
[1750837098673,35.98,147.03,147.02,6.7987]
[1750837101080,45.94832391,147.06,147.03,6.7979]
[1750837101289,45.94832391,147.06,147.01,2.2014]
[1750837101290,35.82,147.06,147.01,2.2014]
[1750837101495,39.15122391,147.06,147.01,2.2014]
[1750837101803,6.7977,147.05,147.01,2.2014]
[1750837102183,6.7977,147.05,147.02,6.7985]
[1750837102593,39.15122391,147.06,147.0,6.3013312]
[1750837102594,10.12902391,147.04,147.0,6.3013312]
[1750837103091,3.33122391,147.04,147.02,6.7987]
[1750837103894,35.82,147.06,147.0,9.63255511]
[1750837104391,35.82,147.06,147.04,6.7975]
[1750837104784,35.82,147.06,147.0,9.63255511]
[1750837104983,35.82,147.06,147.05,6.7973]
[1750837105284,39.15122391,147.09,147.02,3.33122391]
[1750837105486,45.94692391,147.09,147.06,6.7966]
[1750837105990,45.94692391,147.09,147.03,4.5656]
[1750837105991,39.15122391,147.09,147.07,6.7964]
[1750837106382,39.15122391,147.09,147.03,4.5656]
[1750837106583,45.94672391,147.09,147.06,6.7965]
[1750837106783,39.15122391,147.09,147.06,6.7965]
[1750837106986,35.82,147.09,147.03,4.5656]
[1750837107186,35.82,147.09,147.07,6.7962]
[1750837107394,39.15122391,147.09,147.03,4.5656]
[1750837107893,39.15122391,147.09,147.06,6.7965]
[1750837108281,45.94682391,147.09,147.06,6.7965]
[1750837108688,45.94682391,147.09,147.05,6.7971]
[1750837109290,42.6156,147.09,147.06,6.7968]
[1750837109487,39.15122391,147.09,147.03,4.5656]
[1750837109794,35.82,147.09,147.03,4.5656]
[1750837110189,39.15122391,147.09,147.03,4.5656]
[1750837111893,45.94672391,147.09,147.06,6.7966]
[1750837113100,39.15122391,147.09,147.06,6.7966]
[1750837114401,39.15122391,147.09,147.07,6.7964]
[1750837114996,35.82,147.09,147.07,6.7964]
[1750837115599,42.6155,147.09,147.06,6.7967]
[1750837116302,35.82,147.09,147.06,6.7967]
[1750837116496,35.82,147.09,147.03,7.89682391]
[1750837117000,35.82,147.09,147.07,6.7961]
[1750837117597,35.82,147.09,147.08,6.7959]
[1750837121502,6.7939,147.13,147.05,3.33122391]
[1750837121701,35.8,147.12,147.05,3.33122391]
[1750837122498,35.8,147.12,147.06,3.21339866]
[1750837122696,35.8,147.12,147.11,6.7946]
[1750837124507,3.33122391,147.15,147.09,3.33122391]
[1750837124707,39.13122391,147.17,147.09,3.33122391]
[1750837125316,42.5918,147.17,147.09,3.33122391]
[1750837125606,45.92302391,147.17,147.09,3.33122391]
[1750837125917,42.5918,147.17,147.09,3.33122391]
[1750837126125,35.8,147.17,147.15,6.7926]
[1750837128723,42.5918,147.17,147.14,6.793]
[1750837128927,3.33122391,147.16,147.09,3.33122391]
[1750837129227,10.12352391,147.16,147.09,3.33122391]
[1750837129418,3.33122391,147.16,147.09,3.33122391]
[1750837129824,3.33122391,147.16,147.14,6.7928]
[1750837130326,3.33122391,147.16,147.13,6.7934]
[1750837130824,10.12382391,147.16,147.13,6.7934]
[1750837131123,3.33122391,147.16,147.14,6.7931]
[1750837132722,10.12352391,147.16,147.13,6.7934]
[1750837133336,3.33122391,147.16,147.09,3.33122391]
[1750837133625,3.33122391,147.16,147.14,6.7931]
[1750837135332,10.12352391,147.16,147.13,6.7934]
[1750837135825,3.33122391,147.16,147.09,3.33122391]
[1750837136030,45.92332391,147.17,147.09,3.33122391]
[1750837136428,39.13122391,147.17,147.09,3.33122391]
[1750837137540,6.7925,147.16,147.13,6.7932]
[1750837137828,39.13122391,147.17,147.09,3.33122391]
[1750837138225,6.7929,147.15,147.12,6.7941]
[1750837139024,3.32646986,147.13,147.02,6.3013312]
[1750837139221,3.32646986,147.07,147.03,3.20803043]
[1750837139523,35.64,147.08,147.07,6.7964]
[1750837139730,35.64,147.09,147.02,9.62780106]
[1750837139921,35.64,147.09,147.03,3.20953128]
[1750837140230,38.96646986,147.09,147.02,3.32646986]
[1750837140427,3.32646986,147.07,147.01,10.8307312]
[1750837140636,3.32646986,147.03,146.98,6.3013312]
[1750837140934,3.32646986,147.03,146.97,6.3013312]
[1750837140935,38.96646986,147.03,146.97,6.3013312]
[1750837141132,3.32646986,147.01,146.98,3.21370524]
[1750837141325,3.32646986,147.01,146.97,6.3013312]
[1750837141629,35.64,147.03,146.98,3.21431656]
[1750837141832,35.64,147.03,146.97,6.3013312]
[1750837142034,3.33079146,147.02,146.96,6.3013312]
[1750837142229,3.33079146,147.02,146.97,3.2148164]
[1750837142430,3.33079146,147.02,146.96,6.3013312]
[1750837142727,3.33079146,147.02,146.99,6.7998]
[1750837143529,3.33079146,147.0,146.96,6.3013312]
[1750837143736,3.33079146,147.0,146.97,3.21460351]
[1750837143929,3.33079146,146.98,146.96,6.8012]
[1750837144334,3.33079146,146.98,146.95,4.6409]
[1750837144631,3.33079146,146.98,146.96,6.8012]
[1750837145238,3.33079146,146.98,146.95,11.4427]
[1750837145436,3.33079146,146.98,146.95,6.8018]
[1750837146135,3.33079146,146.98,146.94,6.8023]
[1750837146136,3.33079146,146.96,146.94,6.8023]
[1750837148230,3.33079146,146.96,146.91,4.6776]
[1750837148432,3.33079146,146.94,146.91,4.6776]
[1750837149140,3.33079146,146.94,146.93,6.8029]
[1750837150029,3.33079146,146.94,146.92,6.8032]
[1750837152444,3.33079146,146.94,146.91,4.6776]
[1750837153044,3.33079146,146.92,146.85,160.22095658]
[1750837153249,3.33079146,146.9,146.84,6.3013312]
[1750837153433,3.33079146,146.9,146.87,6.8054]
[1750837153434,39.01079146,146.9,146.87,6.8054]
[1750837154044,39.01079146,146.9,146.82,10.22229146]
[1750837154544,39.01079146,146.9,146.88,6.8047]
[1750837154743,39.01079146,146.9,146.82,10.22229146]
[1750837155143,39.01079146,146.9,146.88,6.8048]
[1750837155347,39.01079146,146.9,146.82,10.22229146]
[1750837155743,39.01079146,146.9,146.88,6.8049]
[1750837158040,39.01079146,146.9,146.82,72.22229146]
[1750837159145,39.01079146,146.9,146.89,6.8047]
[1750837159651,35.68,146.9,146.89,6.8047]
[1750837160149,39.01079146,146.9,146.89,6.8047]
[1750837160445,39.01079146,146.9,146.88,6.805]
[1750837160836,39.01079146,146.9,146.89,6.8047]
[1750837162651,39.01079146,146.9,146.88,6.805]
[1750837162954,39.01079146,146.9,146.82,6.8915]